bitfinex/quotes_SOLUSD_20250717
["timestamp","ask_amount","ask_price","bid_price","bid_amount"]
[1752720523163,37.04343859,170.55,170.51,0.69]
[1752720523370,5.86307768,170.56,170.51,0.69]
[1752720523557,37.04307768,170.56,170.51,0.69]
[1752720523764,8.2510997,170.55,170.51,0.69]
[1752720524149,8.2510997,170.55,170.52,0.69]
[1752720524556,37.04307768,170.56,170.52,0.69]
[1752720524752,8.2510997,170.57,170.53,0.69]
[1752720524976,8.2510997,170.58,170.54,0.69]
[1752720525296,39.4110997,170.58,170.54,0.69]
[1752720525452,8.2510997,170.6,170.55,8.9410997]
[1752720525651,31.16,170.59,170.56,0.69]
[1752720526068,31.16,170.59,170.57,0.69]
[1752720526271,31.16,170.59,170.58,0.69]
[1752720526459,39.3910997,170.62,170.58,0.69]
[1752720526657,39.3910997,170.62,170.58,8.9410997]
[1752720526999,31.14,170.62,170.58,6.55235194]
[1752720527159,39.3910997,170.63,170.58,8.9410997]
[1752720527688,0.03,170.67,170.58,8.9410997]
[1752720527689,0.03,170.67,170.58,31.86223147]
[1752720527877,5.88934624,170.67,170.62,8.2510997]
[1752720528065,14.14044594,170.67,170.62,0.69]
[1752720528254,8.2810997,170.67,170.63,0.69]
[1752720528684,0.03,170.67,170.63,8.9410997]
[1752720528983,0.03,170.67,170.64,8.2510997]
[1752720529154,5.88926512,170.67,170.63,8.9410997]
[1752720529360,0.03,170.67,170.63,8.9410997]
[1752720529579,0.03,170.67,170.65,8.2510997]
[1752720529977,0.03,170.67,170.64,0.69]
[1752720530286,0.03,170.67,170.64,8.9410997]
[1752720530491,0.03,170.67,170.65,8.2510997]
[1752720530653,0.03,170.67,170.66,8.2510997]
[1752720530851,0.03,170.67,170.66,8.9410997]
[1752720531879,30.17,170.71,170.66,8.9410997]
[1752720532086,30.17,170.71,170.67,8.9410997]
[1752720532884,30.17,170.71,170.67,8.2510997]
[1752720533065,30.17,170.71,170.68,0.69]
[1752720533771,30.17,170.71,170.68,8.9410997]
[1752720534086,29.35378397,170.76,170.67,5.85923901]
[1752720534087,14.10778669,170.75,170.7,8.2510997]
[1752720534259,31.1,170.75,170.71,8.9510997]
[1752720534607,18.79481612,170.76,170.71,8.9510997]
[1752720534894,8.2510997,170.75,170.71,0.7]
[1752720535071,8.2510997,170.72,170.67,26.7]
[1752720535397,41.64371642,170.76,170.67,26.7]
[1752720535398,8.2510997,170.73,170.68,8.9510997]
[1752720535560,8.2510997,170.75,170.7,8.2510997]
[1752720535903,8.2510997,170.74,170.7,0.7]
[1752720536457,8.2510997,170.73,170.67,0.7]
[1752720536668,0.03,170.71,170.67,8.9510997]
[1752720536893,8.2810997,170.71,170.67,0.7]
[1752720537100,0.03,170.71,170.67,14.81030866]
[1752720537276,0.03,170.71,170.7,8.2510997]
[1752720537784,0.03,170.71,170.68,26.0]
[1752720537956,0.03,170.71,170.68,8.9510997]
[1752720538161,0.03,170.71,170.69,8.9510997]
[1752720538358,0.03,170.71,170.7,8.2510997]
[1752720538585,0.03,170.71,170.68,8.2510997]
[1752720538887,0.03,170.71,170.67,0.7]
[1752720539096,0.03,170.71,170.69,0.7]
[1752720539395,0.03,170.71,170.7,8.2510997]
[1752720539606,0.03,170.71,170.7,0.7]
[1752720539788,8.2810997,170.71,170.67,0.7]
[1752720540167,8.2810997,170.71,170.66,6.0655]
[1752720540368,8.2510997,170.69,170.65,26.7]
[1752720540600,8.2810997,170.71,170.66,8.9510997]
[1752720540797,8.2810997,170.71,170.67,0.7]
[1752720541178,0.03,170.71,170.68,0.7]
[1752720541506,8.2810997,170.71,170.68,0.7]
[1752720541868,8.2810997,170.71,170.7,8.2510997]
[1752720541869,0.03,170.71,170.7,8.2510997]
[1752720542170,0.03,170.71,170.7,8.9510997]
[1752720542573,0.03,170.71,170.7,14.80933051]
[1752720542870,0.03,170.71,170.7,6.55823081]
[1752720543077,0.03,170.71,170.7,14.80933051]
[1752720543300,0.03,170.71,170.7,6.55823081]
[1752720543498,0.03,170.71,170.7,8.9510997]
[1752720543811,0.03,170.71,170.7,14.80933051]
[1752720543982,0.03,170.71,170.7,49.00503051]
[1752720548276,4.6875,170.76,170.7,49.00503051]
[1752720548277,4.6875,170.76,170.73,26.0]
[1752720548479,4.6875,170.76,170.75,8.2510997]
[1752720548785,4.6875,170.76,170.75,14.10761507]
[1752720548991,4.6875,170.76,170.75,14.80761507]
[1752720549672,0.03,170.77,170.75,14.80761507]
[1752720549875,0.03,170.81,170.79,32.4571]
[1752720550095,0.03,170.81,170.8,39.2710997]
[1752720550306,0.03,170.83,170.82,34.2510997]
[1752720550782,0.03,170.83,170.82,40.80521514]
[1752720551375,0.03,170.83,170.82,45.49132705]
[1752720551879,0.2,170.85,170.82,70.52711072]
[1752720552097,0.2,170.85,170.84,8.2510997]
[1752720552502,0.2,170.85,170.84,8.9510997]
[1752720552881,0.03,170.86,170.84,8.9510997]
[1752720552882,0.03,170.86,170.84,14.80452981]
[1752720553207,0.03,170.86,170.85,10.6045997]
[1752720553208,1e-08,170.86,170.85,10.6045997]
[1752720553378,1e-08,170.86,170.85,41.6245997]
[1752720555112,1e-08,170.86,170.85,16.4576872]
[1752720555298,1e-08,170.86,170.85,47.4576872]
[1752720555899,1e-08,170.86,170.85,64.24237117]
[1752720556319,0.03,170.93,170.89,42.78468397]
[1752720556612,0.03,170.93,170.92,34.2510997]
[1752720557181,0.03,170.93,170.92,40.10179008]
[1752720557386,0.03,170.93,170.92,26.0]
[1752720558713,8.9510997,170.93,170.9,26.0]
[1752720559020,0.67,170.92,170.9,26.0]
[1752720559694,0.03,170.93,170.9,26.0]
[1752720560288,0.03,170.93,170.9,34.2510997]
[1752720560713,0.67,170.92,170.84,14.63316957]
[1752720560892,0.67,170.92,170.81,26.78468397]
[1752720560893,8.2510997,170.9,170.85,39.2110997]
[1752720561088,8.2510997,170.9,170.88,26.0]
[1752720561291,0.67,170.9,170.88,26.0]
[1752720561493,0.7,170.93,170.89,8.2510997]
[1752720561688,0.03,170.93,170.9,8.2510997]
[1752720562127,0.03,170.93,170.91,8.2510997]
[1752720562926,0.03,170.93,170.92,8.2510997]
[1752720563401,0.03,170.93,170.92,14.80179008]
[1752720566217,0.03,170.93,170.92,23.05288978]
[1752720566712,0.2,170.95,170.92,23.05288978]
[1752720566713,0.2,170.95,170.93,16.78468397]
[1752720566898,0.2,170.95,170.94,47.4421994]
[1752720567102,0.2,170.95,170.94,53.29220525]
[1752720567331,0.2,170.95,170.94,53.98220525]
[1752720568730,0.2,170.97,170.96,26.0]
[1752720568904,0.2,170.97,170.96,34.2510997]
[1752720569105,0.2,170.97,170.95,39.1910997]
[1752720569399,0.2,170.97,170.96,8.2510997]
[1752720570220,0.2,170.97,170.95,8.2510997]
[1752720570753,0.2,170.97,170.96,8.2510997]
[1752720571939,0.2,170.97,170.96,14.10042117]
[1752720572138,0.2,170.97,170.96,8.2510997]
[1752720572635,0.2,170.97,170.96,14.10042117]
[1752720573420,0.2,170.97,170.96,8.2510997]
[1752720574818,0.2,170.97,170.96,14.10042117]
[1752720575330,0.2,170.97,170.96,8.2510997]
[1752720576315,0.87,170.97,170.95,30.92]
[1752720576633,0.87,170.97,170.94,8.2510997]
[1752720576819,8.9210997,170.96,170.91,30.84]
[1752720577019,8.9210997,170.96,170.91,39.7810997]
[1752720577225,8.9210997,170.96,170.91,65.7810997]
[1752720577632,0.67,170.95,170.91,65.0910997]
[1752720578052,0.67,170.95,170.91,70.94196967]
[1752720578235,8.4510997,170.97,170.92,8.2510997]
[1752720578438,0.87,170.97,170.93,8.2510997]
[1752720578751,0.87,170.97,170.94,8.2510997]
[1752720579048,0.87,170.97,170.93,8.2510997]
[1752720579453,9.1210997,170.97,170.93,8.2510997]
[1752720580154,0.87,170.97,170.93,8.2510997]
[1752720580445,9.1210997,170.97,170.93,8.2510997]
[1752720581154,9.1210997,170.97,170.92,6.54057559]
[1752720581354,9.1210997,170.97,170.93,8.2510997]
[1752720581550,0.2,170.97,170.95,8.2510997]
[1752720583550,0.2,170.97,170.94,8.2510997]
[1752720584436,0.2,170.97,170.93,5.85024366]
[1752720584650,0.2,170.97,170.94,8.2510997]
[1752720585166,0.2,170.97,170.94,14.79100344]
[1752720586251,0.2,170.97,170.96,34.2510997]
[1752720586754,0.2,170.97,170.96,34.9410997]
[1752720587965,0.2,170.97,170.96,0.69]
[1752720588282,0.2,170.97,170.96,8.2510997]
[1752720588448,0.2,170.97,170.95,26.0]
[1752720588635,9.1210997,170.97,170.92,14.79170949]
[1752720588840,0.67,170.96,170.92,8.2510997]
[1752720589160,0.67,170.96,170.92,34.2510997]
[1752720589343,8.9210997,170.96,170.92,26.0]
[1752720589546,8.9210997,170.96,170.91,14.16201606]
[1752720589739,0.2,170.97,170.92,8.9410997]
[1752720589955,14.97009456,170.97,170.94,26.0]
[1752720591143,14.97009456,170.97,170.93,26.0]
[1752720591347,9.1210997,170.97,170.93,34.2510997]
[1752720591644,14.97012905,170.97,170.93,34.2510997]
[1752720591960,6.71902935,170.97,170.94,26.0]
[1752720592161,14.97012905,170.97,170.94,26.0]
[1752720592361,6.71902935,170.97,170.94,26.0]
[1752720592549,14.97012905,170.97,170.93,26.0]
[1752720592738,9.1210997,170.97,170.93,26.69]
[1752720592934,0.2,170.97,170.96,8.2510997]
[1752720593138,0.2,170.97,170.96,0.69]
[1752720593339,0.2,170.97,170.94,5.84990503]
[1752720593563,0.2,170.97,170.94,8.2510997]
[1752720594969,0.2,170.97,170.93,63.26027546]
[1752720595161,0.2,170.97,170.94,8.2510997]
[1752720596773,6.71899755,170.97,170.93,56.72]
[1752720597066,14.97009725,170.97,170.93,56.72]
[1752720597264,14.97009725,170.97,170.92,8.2510997]
[1752720597567,0.87,170.97,170.93,8.2510997]
[1752720597769,0.2,170.97,170.93,8.9210997]
[1752720598346,8.9210997,170.96,170.91,71.53200765]
[1752720598647,8.2510997,170.96,170.91,26.06]
[1752720598854,8.2510997,170.92,170.91,0.06]
[1752720599164,30.88647405,170.92,170.91,0.06]
[1752720599344,31.55647405,170.92,170.91,0.06]
[1752720599986,14.77179008,170.92,170.91,0.06]
[1752720600561,6.52069038,170.92,170.91,0.06]
[1752720600872,14.77179008,170.92,170.91,0.06]
[1752720601073,8.2510997,170.92,170.91,0.06]
[1752720601279,14.10179008,170.92,170.91,0.06]
[1752720601863,8.9210997,170.96,170.91,8.9810997]
[1752720602079,22.83370481,170.97,170.91,26.06]
[1752720602389,8.2510997,170.93,170.91,0.06]
[1752720602558,8.9210997,170.95,170.91,0.06]
[1752720602758,8.2510997,170.95,170.91,0.06]
[1752720602987,8.2510997,170.95,170.91,0.73]
[1752720603311,8.2510997,170.96,170.92,0.67]
[1752720604071,0.2,170.97,170.93,8.9210997]
[1752720604388,0.2,170.97,170.94,0.67]
[1752720605581,0.2,170.97,170.95,0.67]
[1752720606181,0.2,170.97,170.93,14.77127511]
[1752720606579,14.97010965,170.97,170.91,26.73]
[1752720606785,6.71900995,170.97,170.92,8.2510997]
[1752720606984,8.2510997,170.96,170.92,8.9210997]
[1752720607361,8.9210997,170.96,170.91,34.3110997]
[1752720607564,14.77048218,170.96,170.93,26.0]
[1752720607792,8.2510997,170.96,170.93,26.0]
[1752720608188,8.2510997,170.96,170.93,26.67]
[1752720608688,8.4510997,170.97,170.93,26.67]
[1752720608993,8.4510997,170.97,170.96,8.2510997]
[1752720608994,0.2,170.97,170.96,8.2510997]
[1752720609205,0.2,170.97,170.96,8.9210997]
[1752720609563,0.2,170.97,170.96,14.77042117]
[1752720611078,0.2,170.97,170.96,14.10042117]
[1752720611275,0.2,170.97,170.95,14.10070968]
[1752720611477,0.2,170.97,170.95,26.0]
[1752720612798,0.2,170.97,170.95,26.67]
[1752720613290,0.2,170.97,170.95,26.0]
[1752720614375,0.2,170.97,170.95,26.67]
[1752720614694,0.2,170.97,170.95,26.0]
[1752720615379,14.97010338,170.97,170.93,0.67]
[1752720615687,8.4510997,170.97,170.93,0.67]
[1752720617093,5.23823769,170.97,170.93,0.67]
[1752720617403,5.23823769,170.97,170.93,6.52033757]
[1752720617600,0.2,170.97,170.94,0.67]
[1752720617905,0.2,170.97,170.94,10.88815299]
[1752720618099,0.2,170.97,170.95,0.67]
[1752720619277,5.23823769,170.97,170.93,0.67]
[1752720619482,5.23823769,170.97,170.92,56.66]
[1752720619483,11.75726364,170.97,170.92,36.88881515]
[1752720619700,6.04902595,170.97,170.92,26.0]
[1752720619899,5.03823769,170.94,170.91,0.06]
[1752720620491,5.70823769,170.94,170.91,0.06]
[1752720620706,5.03823769,170.93,170.91,0.06]
[1752720621002,5.70823769,170.93,170.91,0.06]
[1752720621198,5.03823769,170.94,170.91,0.06]
[1752720622192,5.03823769,170.94,170.91,0.73]
[1752720622695,5.03823769,170.92,170.91,0.06]
[1752720622898,21.82292166,170.92,170.91,0.06]
[1752720623404,22.49292166,170.92,170.91,0.06]
[1752720624007,28.34361204,170.92,170.91,0.06]
[1752720624217,23.30537435,170.92,170.91,0.06]
[1752720624505,28.34361204,170.92,170.91,0.06]
[1752720624906,11.55892807,170.92,170.91,0.06]
[1752720625108,6.52069038,170.92,170.91,0.06]
[1752720625306,14.73848251,170.92,170.91,0.06]
[1752720625848,14.06848251,170.92,170.91,0.06]
[1752720626001,8.21779213,170.94,170.91,0.06]
[1752720626306,16.78468397,170.95,170.91,0.06]
[1752720626307,5.84966364,170.95,170.91,0.06]
[1752720626485,8.21779213,170.93,170.91,0.06]
[1752720629005,8.21779213,170.94,170.91,0.06]
[1752720629596,8.21779213,170.96,170.92,0.71]
[1752720629802,0.2,170.97,170.93,8.92779213]
[1752720630411,0.2,170.97,170.94,8.92779213]
[1752720630833,0.2,170.97,170.95,0.71]
[1752720631014,0.2,170.97,170.96,0.71]
[1752720631397,0.2,170.97,170.94,8.92779213]
[1752720631792,0.2,170.97,170.94,8.21779213]
[1752720632025,0.2,170.97,170.94,8.92779213]
[1752720632193,6.04901102,170.97,170.93,34.21779213]
[1752720632398,6.04901102,170.97,170.93,26.0]
[1752720632399,8.21779213,170.96,170.93,26.0]
[1752720632606,8.21779213,170.96,170.91,64.85779213]
[1752720632792,0.67,170.96,170.91,71.41878543]
[1752720632993,8.21779213,170.96,170.92,8.92779213]
[1752720634022,14.73723561,170.96,170.91,70.70878543]
[1752720634196,8.21779213,170.96,170.92,8.92779213]
[1752720634396,0.2,170.97,170.93,8.92779213]
[1752720634591,0.2,170.97,170.94,8.92779213]
[1752720634908,0.2,170.97,170.95,8.21779213]
[1752720635110,0.2,170.97,170.96,8.21779213]
[1752720635313,0.2,170.97,170.96,8.92779213]
[1752720635910,0.2,170.97,170.96,14.7771136]
[1752720636300,0.2,170.97,170.95,8.21779213]
[1752720636497,0.2,170.97,170.94,40.77749919]
[1752720636820,0.2,170.97,170.96,8.21779213]
[1752720637221,0.2,170.97,170.96,8.92779213]
[1752720637623,0.2,170.97,170.94,31.84970706]
[1752720637624,0.2,170.97,170.94,40.06749919]
[1752720638005,0.2,170.97,170.94,40.77749919]
[1752720638205,0.2,170.97,170.95,8.92779213]
[1752720638405,0.2,170.97,170.95,0.71]
[1752720638606,0.2,170.97,170.95,8.21779213]
[1752720639120,0.2,170.97,170.94,34.92779213]
[1752720639830,8.21779213,170.96,170.92,0.71]
[1752720640215,8.21779213,170.96,170.92,8.21779213]
[1752720640406,8.21779213,170.96,170.93,0.71]
[1752720641704,0.2,170.97,170.94,8.92779213]
[1752720641901,0.2,170.97,170.95,0.71]
[1752720642909,0.2,170.97,170.95,8.92779213]
[1752720643513,0.2,170.97,170.96,0.71]
[1752720644110,0.2,170.97,170.96,14.7771136]
[1752720644946,0.2,170.97,170.96,11.59489847]
[1752720645505,0.2,170.97,170.96,13.20779847]
[1752720645736,0.03,171.0,170.99,26.0]
[1752720645937,0.03,171.0,170.99,61.575577]
[1752720646127,0.03,171.0,170.99,68.13387222]
[1752720648412,0.03,171.0,170.99,63.09829522]
[1752720648612,0.03,171.0,170.99,68.13387222]
[1752720651423,0.2,171.04,171.03,26.0]
[1752720651627,0.2,171.04,171.03,61.595577]
[1752720651927,0.2,171.04,171.03,62.305577]
[1752720652330,0.2,171.04,171.03,74.54320443]
[1752720652655,0.2,171.04,171.03,76.15090443]
[1752720653152,1e-08,171.04,171.03,92.9355884]
[1752720654053,1e-08,171.04,171.03,40.55532743]
[1752720654227,1e-08,171.04,171.03,76.17090443]
[1752720654558,1e-08,171.04,171.03,68.17250443]
[1752720654844,1e-08,171.04,171.03,35.615577]
[1752720655148,1e-08,171.04,171.03,56.58]
[1752720655651,1e-08,171.04,171.01,30.64]
[1752720655821,5.70557701,171.04,170.99,30.64]
[1752720656021,5.035577,171.03,170.99,30.64]
[1752720656221,5.035577,171.03,170.99,62.48822545]
[1752720656439,1e-08,171.04,171.01,5.84761125]
[1752720656636,1e-08,171.04,171.01,6.53761125]
[1752720656821,1e-08,171.04,171.0,10.88345268]
[1752720657018,8.20392037,171.04,170.99,70.69213858]
[1752720657241,0.67,171.03,170.99,70.69213858]
[1752720657451,8.87392036,171.03,170.99,70.69213858]
[1752720658036,8.87392036,171.02,170.97,8.89392036]
[1752720658248,8.20392036,171.01,170.97,31.33]
[1752720658560,8.20392036,171.01,170.97,57.33]
[1752720658849,1e-08,171.04,171.0,34.20392036]
[1752720659043,1e-08,171.04,171.01,8.20392036]
[1752720659246,1e-08,171.04,171.01,8.89392036]
[1752720660940,1e-08,171.04,171.01,14.74141887]
[1752720661756,8.87392037,171.04,170.99,38.82392036]
[1752720661936,8.20392036,171.02,170.99,26.0]
[1752720662130,8.20392036,171.01,170.96,8.89392036]
[1752720662327,8.20392036,171.01,170.97,8.89392036]
[1752720662740,8.20392036,171.01,170.97,34.89392036]
[1752720662951,8.20392036,171.01,170.97,26.0]
[1752720662952,8.87392036,171.01,170.97,26.0]
[1752720663149,8.20392036,171.02,170.98,0.69]
[1752720663395,0.67,171.03,170.98,0.69]
[1752720663535,8.20392036,171.03,170.99,0.69]
[1752720663965,8.20392036,171.02,170.97,40.05289483]
[1752720664261,8.20392036,171.01,170.97,40.05289483]
[1752720664445,8.20392036,171.02,170.98,0.69]
[1752720664642,8.20392036,171.02,170.98,6.53856174]
[1752720664850,0.67,171.03,170.98,6.53856174]
[1752720665050,8.20392036,171.02,170.98,6.53856174]
[1752720665562,8.20392036,171.02,170.99,0.69]
[1752720666464,8.20392037,171.04,171.0,0.69]
[1752720666846,14.72052589,171.04,170.99,8.20392036]
[1752720667059,8.20392036,171.03,170.98,8.89392036]
[1752720667562,6.51660553,171.04,170.97,26.0]
[1752720667563,8.20392037,171.04,170.99,8.89392036]
[1752720667743,8.20392037,171.04,171.0,0.69]
[1752720667944,14.05060086,171.04,171.0,0.69]
[1752720668752,5.8466805,171.04,171.0,0.69]
[1752720668951,14.05060086,171.04,171.0,0.69]
[1752720670166,14.72060086,171.04,171.0,0.69]
[1752720670363,14.72060086,171.04,170.99,8.20392036]
[1752720670561,8.20392036,171.03,170.99,0.69]
[1752720670757,8.20392036,171.01,170.98,30.6]
[1752720670965,8.20392036,171.02,170.98,31.29]
[1752720671562,14.05060086,171.04,170.99,8.89392036]
[1752720671741,14.05060086,171.04,171.0,0.69]
[1752720672066,14.72060086,171.04,170.99,8.20392036]
[1752720672256,14.72060086,171.04,170.99,8.89392036]
[1752720672657,14.05060086,171.04,171.0,0.69]
[1752720675651,8.20392036,171.03,171.0,0.69]
[1752720675855,14.0508968,171.03,170.98,39.49392036]
[1752720676058,14.0508968,171.03,170.99,0.69]
[1752720676573,8.20392036,171.03,170.99,0.69]
[1752720678180,14.05094789,171.03,170.99,0.69]
[1752720678398,8.20392036,171.02,170.98,30.6]
[1752720678682,8.20392036,171.0,170.98,0.06]
[1752720679081,5.03692221,171.0,170.98,0.06]
[1752720679278,5.70692221,171.0,170.98,0.06]
[1752720679483,5.03692221,170.99,170.98,0.06]
[1752720680182,10.88521743,170.99,170.98,0.06]
[1752720680484,11.55521743,170.99,170.98,0.06]
[1752720680917,28.3399014,170.99,170.98,0.06]
[1752720682187,11.55521743,170.99,170.98,0.06]
[1752720682695,0.67,170.99,170.98,0.06]
[1752720682870,5.03692221,171.0,170.98,0.06]
[1752720683077,6.454,171.03,170.98,0.06]
[1752720683078,16.78468397,171.03,170.98,0.75]
[1752720683294,5.03692221,171.01,170.98,0.75]
[1752720683478,5.03692221,171.01,170.98,0.06]
[1752720683882,16.78468397,171.03,170.98,0.06]
[1752720683883,5.03692221,170.99,170.98,0.06]
[1752720684070,6.51824138,171.0,170.98,0.06]
[1752720684271,5.03692221,170.99,170.98,0.06]
[1752720686122,11.55521743,170.99,170.98,0.06]
[1752720686405,28.3399014,170.99,170.98,0.06]
[1752720690786,58.7599014,170.99,170.98,0.06]
[1752720693501,58.0899014,170.99,170.98,0.06]
[1752720693879,53.05297919,170.99,170.98,0.06]
[1752720694081,30.42,170.99,170.98,0.06]
[1752720694304,5.03692221,171.03,170.98,5.81692221]
[1752720694600,0.67,171.05,170.99,5.75692221]
[1752720694781,30.42,171.05,171.02,5.03692221]
[1752720695296,30.42,171.05,171.02,5.75692221]
[1752720695677,30.42,171.05,171.03,0.72]
[1752720695905,5.87596844,171.06,171.03,0.72]
[1752720696207,5.87596844,171.06,171.02,5.75692221]
[1752720697105,14.07783499,171.06,171.02,8.92186655]
[1752720697286,25.01655052,171.06,171.02,0.72]
[1752720697487,0.03,171.06,171.02,8.92186655]
[1752720697783,0.03,171.06,171.03,8.92186655]
[1752720697975,0.03,171.06,171.03,14.76879398]
[1752720699300,0.03,171.06,171.03,40.76879398]
[1752720700193,0.03,171.06,171.03,14.76879398]
[1752720703681,0.03,171.06,171.03,6.56692743]
[1752720703886,0.03,171.06,171.03,14.76879398]
[1752720704403,0.03,171.06,171.03,6.56692743]
[1752720704718,0.03,171.06,171.03,14.76879398]
[1752720704915,8.20186655,171.05,171.01,0.72]
[1752720705208,8.20186656,171.04,170.99,39.32186655]
[1752720705397,8.20186656,171.04,171.0,0.72]
[1752720705781,1e-08,171.04,171.03,8.20186655]
[1752720706102,1e-08,171.04,171.03,8.92186655]
[1752720706500,1e-08,171.04,171.02,31.84707002]
[1752720706684,1e-08,171.04,171.02,26.0]
[1752720707107,1e-08,171.04,171.02,26.72]
[1752720707502,1e-08,171.04,171.02,26.0]
[1752720708789,1e-08,171.04,171.03,8.92186655]
[1752720710908,1e-08,171.04,171.03,14.76879398]
[1752720715720,1e-08,171.04,171.03,6.62692743]
[1752720715950,1e-08,171.04,171.03,14.82879398]
[1752720716422,1e-08,171.04,171.03,26.78]
[1752720716717,1e-08,171.04,171.03,26.06]
[1752720718318,1e-08,171.04,171.03,31.90692743]
[1752720718512,1e-08,171.04,171.03,37.60987254]
[1752720718919,1e-08,171.04,171.03,26.06]
[1752720719823,1e-08,171.04,171.03,37.60987254]
[1752720720623,1e-08,171.04,171.03,26.06]
[1752720721197,1e-08,171.04,171.03,0.06]
[1752720724928,1e-08,171.04,171.03,0.73]
[1752720725529,1e-08,171.04,171.03,0.06]
[1752720725822,1e-08,171.04,171.03,5.76294511]
[1752720726624,1e-08,171.04,171.03,0.73]
[1752720727329,0.67000001,171.04,171.03,0.06]
[1752720727525,5.70294512,171.04,171.03,0.06]
[1752720729327,11.54953071,171.04,171.03,0.06]
[1752720730124,1e-08,171.04,171.03,0.06]
[1752720732304,1e-08,171.04,171.03,5.76294511]
[1752720733318,1e-08,171.04,171.03,0.06]
[1752720735515,1e-08,171.04,171.03,0.73]
[1752720736048,1e-08,171.04,171.03,5.76294511]
[1752720736621,1e-08,171.04,171.03,11.60987254]
[1752720736817,1e-08,171.04,171.03,67.98987254]
[1752720737350,1e-08,171.04,171.03,41.98987254]
[1752720739950,1e-08,171.04,171.03,43.59457254]
[1752720740517,0.03,171.06,171.05,26.0]
[1752720740734,0.03,171.06,171.05,36.87918889]
[1752720741017,0.03,171.06,171.05,37.54918889]
[1752720742733,0.03,171.06,171.05,67.90918889]
[1752720744344,0.03,171.06,171.05,62.87624378]
[1752720744532,0.03,171.06,171.05,67.90918889]
[1752720744842,0.03,171.06,171.05,79.66092775]
[1752720745225,0.03,171.06,171.05,84.69387286]
[1752720746236,0.03,171.07,171.06,16.78468397]
[1752720746542,0.03,171.07,171.06,22.53762908]
[1752720747159,0.03,171.07,171.06,23.35058599]
[1752720747323,0.03,171.07,171.06,28.3835311]
[1752720749717,0.03,171.1,171.09,42.78468397]
[1752720749921,0.03,171.1,171.09,73.14468397]
[1752720750122,0.03,171.1,171.09,83.93057419]
[1752720750844,0.03,171.1,171.09,57.08]
[1752720751043,0.03,171.1,171.09,62.11294511]
[1752720751546,0.03,171.1,171.09,67.95782207]
[1752720753346,0.03,171.1,171.09,67.23782207]
[1752720753841,0.03,171.1,171.09,67.95782207]
[1752720756527,0.03,171.1,171.09,56.36]
[1752720756747,0.03,171.1,171.09,61.39294511]
[1752720757025,0.03,171.1,171.09,26.0]
[1752720757224,0.03,171.1,171.08,35.37294511]
[1752720757431,0.03,171.1,171.09,5.03294511]
[1752720758229,0.03,171.1,171.09,5.75294511]
[1752720758426,0.03,171.1,171.09,10.78589022]
[1752720759253,0.03,171.1,171.09,16.63076718]
[1752720759848,0.03,171.1,171.09,33.41545115]
[1752720760144,0.03,171.13,171.12,42.78468397]
[1752720760348,0.03,171.13,171.12,78.15762908]
[1752720760556,0.03,171.13,171.12,78.87762908]
[1752720761332,0.03,171.13,171.12,84.72148134]
[1752720761669,0.03,171.13,171.12,67.93679737]
[1752720761970,0.03,171.13,171.12,67.21679737]
[1752720762149,0.03,171.13,171.12,36.87679737]
[1752720762349,0.03,171.13,171.11,56.34]
[1752720762660,0.67,171.12,171.11,26.0]
[1752720762954,0.03,171.13,171.11,26.0]
[1752720763134,0.7,171.13,171.11,26.0]
[1752720763646,0.03,171.13,171.12,5.03294511]
[1752720765644,0.03,171.13,171.11,41.216908]
[1752720765967,0.7,171.13,171.1,41.21743865]